fUST/lending_fUST_20251206
["ID","MTS","AMOUNT","RATE_DAILY","PERIOD"]
[396438126,1764969055293,-641.73,0.00016712,2]
[396438128,1764969055302,-500.0,0.00016712,2]
[396438130,1764969055311,-500.0,0.00016712,2]
[396438132,1764969055320,-500.0,0.00016712,2]
[396438134,1764969055330,-1248.5,0.00016712,2]
[396438136,1764969055340,-1626.94,0.00016712,2]
[396438138,1764969055350,-500.0,0.00016712,2]
[396438140,1764969055359,-566.21,0.00016712,2]
[396438142,1764969055369,-1600.7,0.00016712,2]
[396438144,1764969055378,-500.0,0.00016712,2]
[396438146,1764969055387,-1407.77,0.00016712,2]
[396438148,1764969055396,-501.25,0.00016712,2]
[396438150,1764969055406,-2694.3,0.00016712,2]
[396438152,1764969055415,-500.0,0.00016712,2]
[396438154,1764969055424,-646.43,0.00016712,2]
[396438156,1764969055433,-500.0,0.00016712,2]
[396438158,1764969055443,-500.0,0.00016712,2]
[396438160,1764969055455,-544.93,0.00016712,2]
[396438162,1764969055464,-500.0,0.00016712,2]
[396438164,1764969055473,-500.0,0.00016712,2]
[396438166,1764969055482,-500.0,0.00016712,2]
[396438168,1764969055491,-500.0,0.00016712,2]
[396438170,1764969055499,-500.0,0.00016712,2]
[396438172,1764969055508,-500.0,0.00016712,2]
[396438174,1764969055517,-500.0,0.00016712,2]
[396438176,1764969055526,-912.92,0.00016712,2]
[396438178,1764969055536,-571.91,0.00016712,2]
[396438180,1764969055548,-2254.07,0.00016712,2]
[396438182,1764969055557,-2579.1,0.00016712,2]
[396438184,1764969055566,-911.71,0.00016712,2]
[396438186,1764969055575,-1458.43,0.00016712,2]
[396438188,1764969055586,-500.0,0.00016712,2]
[396438190,1764969055595,-500.0,0.00016712,2]
[396438192,1764969055604,-500.0,0.00016712,2]
[396438194,1764969055613,-500.0,0.00016712,2]
[396438195,1764969055623,-3313.74,0.00016712,2]
[396438197,1764969055632,-500.0,0.00016712,2]
[396438199,1764969055641,-1137.33,0.00016712,2]
[396438201,1764969055650,-959.34,0.00016712,2]
[396438203,1764969055659,-2087.47,0.00016712,2]
[396438205,1764969055667,-500.0,0.00016712,2]
[396438207,1764969055676,-1223.95,0.00016712,2]
[396438209,1764969055685,-587.23,0.00016712,2]
[396438211,1764969055694,-500.0,0.00016712,2]
[396438214,1764969055704,-500.0,0.00016712,2]
[396438215,1764969055714,-844.76,0.00016712,2]
[396438217,1764969055724,-512.51,0.00016712,2]
[396438219,1764969055733,-735.55,0.00016712,2]
[396438222,1764969055742,-500.0,0.00016712,2]
[396438224,1764969055751,-511.57,0.00016712,2]
[396438225,1764969055761,-5202.23,0.00016712,2]
[396438227,1764969055770,-500.0,0.00016712,2]
[396438229,1764969055779,-1473.01,0.00016712,2]
[396438232,1764969055793,-500.0,0.00016712,2]
[396438234,1764969055803,-500.0,0.00016712,2]
[396438236,1764969055812,-500.0,0.00016712,2]
[396438238,1764969055821,-500.0,0.00016712,2]
[396438240,1764969055831,-1807.1,0.00016712,2]
[396438242,1764969055841,-500.0,0.00016712,2]
[396438244,1764969055850,-500.0,0.00016712,2]
[396438246,1764969055859,-949.58,0.00016712,2]
[396438248,1764969055868,-4202.38,0.00016712,2]
[396438250,1764969055878,-9332.56,0.00016712,2]
[396438252,1764969055888,-500.0,0.00016712,2]
[396438254,1764969055898,-500.0,0.00016712,2]
[396438256,1764969055908,-500.0,0.00016712,2]
[396438258,1764969055917,-500.0,0.00016712,2]
[396438260,1764969055928,-500.0,0.00016712,2]
[396438262,1764969055938,-253.01977202,0.00016712,2]
[396438264,1764969055947,-500.0,0.00016712,2]
[396438266,1764969055958,-1512.33,0.00016712,2]
[396438268,1764969055968,-842.58,0.00016712,2]
[396438271,1764969055978,-500.0,0.00016712,2]
[396438273,1764969055987,-500.0,0.00016712,2]
[396438274,1764969055997,-500.0,0.00016712,2]
[396438276,1764969056006,-500.0,0.00016712,2]
[396438278,1764969056015,-500.0,0.00016712,2]
[396438280,1764969056024,-500.0,0.00016712,2]
[396438282,1764969056034,-875.54,0.00016712,2]
[396438284,1764969056043,-500.0,0.00016712,2]
[396438286,1764969056053,-276.02803171,0.00016712,2]
[396438288,1764969056061,-992.75,0.00016712,2]
[396438290,1764969056071,-605.07,0.00016712,2]
[396438292,1764969056079,-500.0,0.00016712,2]
[396438294,1764969056088,-505.81,0.00016712,2]
[396438296,1764969056097,-1527.83,0.00016712,2]
[396438298,1764969056106,-1180.27,0.00016712,2]
[396438300,1764969056115,-500.0,0.00016712,2]
[396438302,1764969056124,-500.0,0.00016712,2]
[396438304,1764969056133,-511.34,0.00016712,2]
[396438306,1764969056143,-500.0,0.00016712,2]
[396438308,1764969056152,-500.0,0.00016712,2]
[396438310,1764969056161,-500.0,0.00016712,2]
[396438312,1764969056170,-644.01,0.00016712,2]
[396438314,1764969056180,-500.0,0.00016712,2]
[396438315,1764969056188,-3094.69,0.00016712,2]
[396438316,1764969056197,-500.0,0.00016712,2]
[396438317,1764969056207,-923.32,0.00016712,2]
[396438318,1764969056217,-1013.93,0.00016712,2]
[396438319,1764969056226,-2052.37,0.00016712,2]
[396438320,1764969056235,-961.58,0.00016712,2]
[396438321,1764969056244,-622.3341204,0.00016712,2]
[396438322,1764969056254,-591.63250484,0.00016712,2]
[396438323,1764969056263,-1807.38,0.00016712,2]
[396438324,1764969056271,-150.41780749,0.00016712,2]
[396438325,1764969056281,-5059.12,0.00016712,2]
[396438326,1764969056290,-500.0,0.00016712,2]
[396438327,1764969056298,-500.0,0.00016712,2]
[396438328,1764969056308,-500.0,0.00016712,2]
[396438330,1764969056317,-568.58887722,0.00016712,2]
[396438332,1764969056325,-549.99,0.00016712,2]
[396438334,1764969056334,-1278.59,0.00016712,2]
[396438336,1764969056344,-500.0,0.00016712,2]
[396438338,1764969056353,-556.56,0.00016712,2]
[396438340,1764969056362,-500.0,0.00016712,2]
[396438342,1764969056371,-589.99,0.00016712,2]
[396438344,1764969056380,-6915.78,0.00016712,2]
[396438346,1764969056389,-1030.71,0.00016712,2]
[396438348,1764969056398,-500.0,0.00016712,2]
[396438350,1764969056408,-1937.37,0.00016712,2]
[396438352,1764969056417,-500.0,0.00016712,2]
[396438354,1764969056426,-500.0,0.00016712,2]
[396438356,1764969056435,-500.0,0.00016712,2]
[396438358,1764969056444,-500.0,0.00016712,2]
[396438360,1764969056454,-695.72,0.00016712,2]
[396438362,1764969056463,-890.84,0.00016712,2]
[396438364,1764969056472,-500.0,0.00016712,2]
[396438366,1764969056482,-500.0,0.00016712,2]
[396438368,1764969056491,-500.0,0.00016712,2]
[396438370,1764969056500,-2809.95,0.00016712,2]
[396438372,1764969056510,-695.79,0.00016712,2]
[396438374,1764969056519,-1013.29,0.00016712,2]
[396438376,1764969056529,-500.0,0.00016712,2]
[396438378,1764969056540,-500.0,0.00016712,2]
[396438380,1764969056550,-546.11,0.00016712,2]
[396438382,1764969056559,-500.0,0.00016712,2]
[396438384,1764969056570,-682.07,0.00016712,2]
[396438386,1764969056579,-3196.1,0.00016712,2]
[396438388,1764969056589,-500.0,0.00016712,2]
[396438390,1764969056598,-500.0,0.00016712,2]
[396438409,1764969056608,-500.0,0.00016712,2]
[396438412,1764969056777,-500.0,0.00016712,2]
[396438414,1764969056787,-2158.27,0.00016712,2]
[396438416,1764969056796,-500.0,0.00016712,2]
[396438418,1764969056806,-7946.3,0.00016712,2]
[396438420,1764969056816,-500.0,0.00016712,2]
[396438422,1764969056825,-523.86,0.00016712,2]
[396438424,1764969056835,-897.44,0.00016712,2]
[396438426,1764969056844,-500.0,0.00016712,2]
[396438428,1764969056853,-500.0,0.00016712,2]
[396438430,1764969056863,-500.0,0.00016712,2]
[396438432,1764969056872,-500.0,0.00016712,2]
[396438434,1764969056881,-1188.08,0.00016712,2]
[396438436,1764969056890,-662.98,0.00016712,2]
[396438438,1764969056900,-815.63,0.00016712,2]
[396438439,1764969056910,-509.23,0.00016712,2]
[396438440,1764969056919,-1983.86,0.00016712,2]
[396438441,1764969056929,-520.0,0.00016712,2]
[396438442,1764969056938,-607.42,0.00016712,2]
[396438443,1764969056948,-5287.21,0.00016712,2]
[396438444,1764969056957,-1115.37,0.00016712,2]
[396438445,1764969056967,-1208.77,0.00016712,2]
[396438446,1764969056978,-500.0,0.00016712,2]
[396438447,1764969056987,-500.0,0.00016712,2]
[396438448,1764969056997,-500.0,0.00016712,2]
[396438450,1764969057006,-500.0,0.00016712,2]
[396438452,1764969057015,-500.0,0.00016712,2]
[396438454,1764969057025,-500.0,0.00016712,2]
[396438456,1764969057035,-942.56,0.00016712,2]
[396438458,1764969057045,-500.0,0.00016712,2]
[396438460,1764969057054,-712.74,0.00016712,2]
[396438462,1764969057064,-500.0,0.00016712,2]
[396438464,1764969057073,-2229.93,0.00016712,2]
[396438466,1764969057082,-500.0,0.00016712,2]
[396438468,1764969057091,-500.0,0.00016712,2]
[396438469,1764969057100,-500.0,0.00016712,2]
[396438470,1764969057110,-500.0,0.00016712,2]
[396438471,1764969057119,-500.0,0.00016712,2]
[396438472,1764969057129,-500.0,0.00016712,2]
[396438473,1764969057138,-500.0,0.00016712,2]
[396438474,1764969057148,-500.0,0.00016712,2]
[396438475,1764969057158,-2267.76,0.00016712,2]
[396438476,1764969057168,-500.0,0.00016712,2]
[396438477,1764969057178,-500.0,0.00016712,2]
[396438478,1764969057188,-505.31,0.00016712,2]
[396438479,1764969057199,-500.0,0.00016712,2]
[396438480,1764969057209,-500.0,0.00016712,2]
[396438481,1764969057222,-798.3,0.00016712,2]
[396438482,1764969057231,-500.0,0.00016712,2]
[396438483,1764969057241,-15058.77,0.00016712,2]
[396438484,1764969057250,-500.0,0.00016712,2]
[396438485,1764969057259,-988.11,0.00016712,2]
[396438486,1764969057269,-500.0,0.00016712,2]
[396438487,1764969057278,-3748.17,0.00016712,2]
[396438488,1764969057288,-500.0,0.00016712,2]
[396438489,1764969057297,-1306.15,0.00016712,2]
[396438490,1764969057307,-500.0,0.00016712,2]
[396438491,1764969057316,-734.32,0.00016712,2]
[396438492,1764969057325,-6834.25,0.00016712,2]
[396438493,1764969057338,-500.0,0.00016712,2]
[396438494,1764969057348,-903.98,0.00016712,2]
[396438495,1764969057358,-230.94459204,0.00016712,2]
[396438496,1764969057367,-500.0,0.00016712,2]
[396438497,1764969057377,-500.0,0.00016712,2]
[396438498,1764969057386,-500.0,0.00016712,2]
[396438499,1764969057395,-847.29,0.00016712,2]
[396438500,1764969057404,-500.0,0.00016712,2]
[396438501,1764969057413,-500.0,0.00016712,2]
[396438502,1764969057423,-740.15,0.00016712,2]
[396438503,1764969057432,-3812.75,0.00016712,2]
[396438504,1764969057443,-2848.72,0.00016712,2]
[396438505,1764969057452,-500.0,0.00016712,2]
[396438506,1764969057462,-504.3320767,0.00016712,2]
[396438507,1764969057471,-1169.55,0.00016712,2]
[396438508,1764969057480,-500.0,0.00016712,2]
[396438509,1764969057489,-685.36,0.00016712,2]
[396438510,1764969057499,-1193.56,0.00016712,2]
[396438511,1764969057508,-1246.41,0.00016712,2]
[396438512,1764969057517,-2811.32,0.00016712,2]
[396438513,1764969057526,-705.26,0.00016712,2]
[396438514,1764969057536,-850.06,0.00016712,2]
[396438515,1764969057548,-9056.2,0.00016712,2]
[396438516,1764969057557,-795.11,0.00016712,2]
[396438517,1764969057566,-500.0,0.00016712,2]
[396438518,1764969057575,-6526.599019,0.00016724,2]
[396438519,1764969057585,-500.0,0.00016726,2]
[396438520,1764969057595,-157.04764859,0.00016795,2]
[396438521,1764969057604,-324.9402315,0.00016814,2]
[396438522,1764969057613,-160.31543182,0.00016822,2]
[396438523,1764969057624,-500.0,0.00016822,2]
[396438524,1764969057633,-181.27856584,0.00016822,2]
[396438525,1764969057643,-336.0,0.00016823,2]
[396438526,1764969057653,-157.04764859,0.00016886,2]
[396438527,1764969057662,-1071.63140587,0.00016937,2]
[396438528,1764969057672,-620.20834133,0.00016945,2]
[396438529,1764969057681,-232.62024775,0.00016959,2]
[396438530,1764969057691,-500.0,0.00016986,2]
[396438531,1764969057702,-523.25,0.00016986,2]
[396438532,1764969057712,-500.0,0.00016986,2]
[396438533,1764969057721,-500.0,0.00016986,2]
[396438534,1764969057731,-500.0,0.00016986,2]
[396438535,1764969057740,-500.0,0.00016986,2]
[396438536,1764969057750,-500.0,0.00016986,2]
[396438537,1764969057759,-730.22,0.00016986,2]
[396438538,1764969057769,-500.0,0.00016986,2]
[396438539,1764969057778,-607.94389001,0.00016986,2]
[396438540,1764969057787,-500.0,0.00016986,2]
[396438541,1764969057796,-500.0,0.00016986,2]
[396438542,1764969057806,-500.0,0.00016986,2]
[396438543,1764969057815,-500.0,0.00016986,2]
[396438544,1764969057825,-482.91004847,0.00016986,2]
[396438545,1764969057834,-500.0,0.00016986,2]
[396438546,1764969057844,-500.0,0.00016986,2]
[396438547,1764969057854,-500.0,0.00016986,2]
[396438548,1764969057863,-500.0,0.00016986,2]
[396438549,1764969057872,-586.46,0.00016986,2]
[396438550,1764969057882,-500.0,0.00016986,2]
[396438551,1764969057891,-500.0,0.00016986,2]
[396438552,1764969057901,-500.0,0.00016986,2]
[396438553,1764969057910,-500.0,0.00016986,2]
[396438554,1764969057919,-500.0,0.00016986,2]
[396438555,1764969057929,-500.0,0.00016986,2]
[396438556,1764969057938,-500.0,0.00016986,2]
[396438557,1764969057947,-500.0,0.00016986,2]
[396438558,1764969057959,-500.0,0.00016986,2]
[396438559,1764969057968,-500.0,0.00016986,2]
[396438560,1764969057978,-500.0,0.00016986,2]
[396438561,1764969057987,-500.0,0.00016986,2]
[396438562,1764969057996,-500.0,0.00016986,2]
[396438563,1764969058006,-500.0,0.00016986,2]
[396438564,1764969058016,-500.0,0.00016986,2]
[396438565,1764969058026,-500.0,0.00016986,2]
[396438566,1764969058035,-500.0,0.00016986,2]
[396438567,1764969058044,-611.78,0.00016986,2]
[396438568,1764969058054,-500.0,0.00016986,2]
[396438569,1764969058063,-500.0,0.00016986,2]
[396438570,1764969058073,-500.0,0.00016986,2]
[396438571,1764969058083,-500.0,0.00016986,2]
[396438572,1764969058092,-511.15,0.00016986,2]
[396438573,1764969058101,-500.0,0.00016986,2]
[396438574,1764969058110,-642.39,0.00016986,2]
[396438575,1764969058120,-500.0,0.00016986,2]
[396438576,1764969058130,-500.0,0.00016986,2]
[396438577,1764969058139,-575.50203561,0.00016986,2]
[396438578,1764969058149,-287.80016259,0.00016986,2]
[396438579,1764969058159,-500.0,0.00016986,2]
[396438580,1764969058169,-834.76,0.00016986,2]
[396438581,1764969058179,-694.79,0.00016986,2]
[396438582,1764969058188,-500.0,0.00016986,2]
[396438583,1764969058198,-507.97,0.00016986,2]
[396438584,1764969058209,-500.0,0.00016986,2]
[396438585,1764969058218,-500.0,0.00016986,2]
[396438586,1764969058227,-500.0,0.00016986,2]
[396438587,1764969058237,-500.0,0.00016986,2]
[396438588,1764969058247,-500.0,0.00016986,2]
[396438589,1764969058257,-505.96,0.00016986,2]
[396438590,1764969058267,-500.0,0.00016986,2]
[396438591,1764969058276,-857.91,0.00016986,2]
[396438592,1764969058285,-500.0,0.00016986,2]
[396438593,1764969058295,-500.0,0.00016986,2]
[396438594,1764969058304,-500.0,0.00016986,2]
[396438595,1764969058313,-500.0,0.00016986,2]
[396438596,1764969058323,-500.0,0.00016986,2]
[396438597,1764969058333,-500.0,0.00016986,2]
[396438598,1764969058343,-500.0,0.00016986,2]
[396438599,1764969058352,-500.0,0.00016986,2]
[396438600,1764969058362,-500.0,0.00016986,2]
[396438601,1764969058372,-500.0,0.00016986,2]
[396438602,1764969058383,-500.0,0.00016986,2]
[396438603,1764969058393,-500.0,0.00016986,2]
[396438604,1764969058402,-500.0,0.00016986,2]
[396438605,1764969058412,-500.0,0.00016986,2]
[396438606,1764969058422,-658.22,0.00016986,2]
[396438607,1764969058436,-500.0,0.00016986,2]
[396438608,1764969058445,-500.0,0.00016986,2]
[396438609,1764969058455,-500.0,0.00016986,2]
[396438610,1764969058464,-223.37087971,0.00016986,2]
[396438611,1764969058474,-500.0,0.00016986,2]
[396438612,1764969058484,-500.0,0.00016986,2]
[396438613,1764969058494,-500.0,0.00016986,2]
[396438614,1764969058504,-500.0,0.00016986,2]
[396438615,1764969058513,-500.0,0.00016986,2]
[396438616,1764969058529,-500.0,0.00016986,2]
[396438617,1764969058545,-500.0,0.00016986,2]
[396438618,1764969058556,-500.0,0.00016986,2]
[396438619,1764969058566,-500.0,0.00016986,2]
[396438620,1764969058576,-632.33,0.00016986,2]
[396438621,1764969058587,-555.4,0.00016986,2]
[396438622,1764969058597,-2224.7,0.00016986,2]
[396438623,1764969058606,-500.0,0.00016986,2]
[396438624,1764969058616,-679.28,0.00016986,2]
[396438625,1764969058628,-500.0,0.00016986,2]
[396438626,1764969058638,-500.0,0.00016986,2]
[396438627,1764969058647,-500.0,0.00016986,2]
[396438628,1764969058657,-778.69,0.00016986,2]
[396438629,1764969058667,-500.0,0.00016986,2]
[396438630,1764969058677,-500.0,0.00016986,2]
[396438631,1764969058686,-500.0,0.00016986,2]
[396438632,1764969058696,-500.0,0.00016986,2]
[396438634,1764969058707,-500.0,0.00016986,2]
[396438636,1764969058716,-500.0,0.00016986,2]
[396438638,1764969058726,-573.93,0.00016986,2]
[396438640,1764969058736,-580.66252732,0.00016986,2]
[396438642,1764969058747,-500.0,0.00016986,2]
[396438644,1764969058756,-500.0,0.00016986,2]
[396438646,1764969058765,-500.0,0.00016986,2]
[396438648,1764969058775,-640.89462068,0.00016986,2]
[396438649,1764969058784,-500.0,0.00016986,2]
[396438651,1764969058793,-500.0,0.00016986,2]
[396438653,1764969058802,-500.0,0.00016986,2]
[396438655,1764969058811,-500.0,0.00016986,2]
[396438657,1764969058822,-500.0,0.00016986,2]
[396438659,1764969058832,-500.0,0.00016986,2]
[396438660,1764969058841,-697.44,0.00016986,2]
[396438661,1764969058851,-412.72226408,0.00016986,2]
[396438662,1764969058860,-1398.64,0.00016986,2]
[396438664,1764969058870,-500.0,0.00016986,2]
[396438666,1764969058879,-500.0,0.00016986,2]
[396438688,1764969059170,-500.0,0.00016986,2]
[396438689,1764969059190,-500.0,0.00016986,2]
[396438690,1764969059200,-483.30644472,0.00016986,2]
[396438691,1764969059210,-500.0,0.00016986,2]
[396438692,1764969059218,-1117.41,0.00016986,2]
[396438693,1764969059228,-211.86588137,0.00016986,2]
[396438694,1764969059237,-500.0,0.00016986,2]
[396438695,1764969059246,-548.9,0.00016986,2]
[396438696,1764969059255,-500.0,0.00016986,2]
[396438697,1764969059264,-500.0,0.00016986,2]
[396438698,1764969059273,-500.0,0.00016986,2]
[396438699,1764969059282,-500.0,0.00016986,2]
[396438700,1764969059291,-500.0,0.00016986,2]
[396438701,1764969059300,-500.0,0.00016986,2]
[396438702,1764969059309,-500.0,0.00016986,2]
[396438703,1764969059318,-500.0,0.00016986,2]
[396438704,1764969059328,-522.62276197,0.00016986,2]
[396438705,1764969059337,-500.0,0.00016986,2]
[396438706,1764969059346,-500.0,0.00016986,2]
[396438707,1764969059356,-606.18,0.00016986,2]
[396438708,1764969059364,-500.0,0.00016986,2]
[396438709,1764969059374,-500.0,0.00016986,2]
[396438710,1764969059383,-555.3041959,0.00016986,2]
[396438711,1764969059392,-500.0,0.00016986,2]
[396438712,1764969059401,-500.0,0.00016986,2]
[396438713,1764969059411,-500.0,0.00016986,2]
[396438714,1764969059420,-500.0,0.00016986,2]
[396438715,1764969059429,-500.0,0.00016986,2]
[396438716,1764969059438,-500.0,0.00016986,2]
[396438717,1764969059447,-1037.82,0.00016986,2]
[396438718,1764969059457,-500.0,0.00016986,2]
[396438719,1764969059467,-500.0,0.00016986,2]
[396438720,1764969059476,-500.0,0.00016986,2]
[396438721,1764969059486,-500.0,0.00016986,2]
[396438722,1764969059495,-500.0,0.00016986,2]
[396438723,1764969059506,-500.0,0.00016986,2]
[396438724,1764969059515,-500.0,0.00016986,2]
[396438725,1764969059524,-691.71,0.00016986,2]
[396438726,1764969059533,-621.68,0.00016986,2]
[396438727,1764969059545,-1282.0,0.00016986,2]
[396438728,1764969059554,-500.0,0.00016986,2]
[396438729,1764969059563,-945.07,0.00016986,2]
[396438730,1764969059572,-500.0,0.00016986,2]
[396438731,1764969059582,-500.0,0.00016986,2]
[396438732,1764969059591,-500.0,0.00016986,2]
[396438733,1764969059600,-817.16,0.00016986,2]
[396438734,1764969059610,-500.0,0.00016986,2]
[396438735,1764969059619,-500.0,0.00016986,2]
[396438736,1764969059630,-701.49,0.00016986,2]
[396438737,1764969059640,-596.1,0.00016986,2]
[396438738,1764969059649,-500.0,0.00016986,2]
[396438739,1764969059659,-500.0,0.00016986,2]
[396438740,1764969059668,-785.27,0.00016986,2]
[396438741,1764969059678,-500.0,0.00016986,2]
[396438742,1764969059687,-500.0,0.00016986,2]
[396438743,1764969059696,-500.0,0.00016986,2]
[396438744,1764969059705,-1367.07,0.00016986,2]
[396438745,1764969059715,-586.08,0.00016986,2]
[396438746,1764969059724,-500.0,0.00016986,2]
[396438747,1764969059733,-500.0,0.00016986,2]
[396438748,1764969059742,-500.0,0.00016986,2]
[396438749,1764969059752,-500.0,0.00016986,2]
[396438750,1764969059761,-500.0,0.00016986,2]
[396438751,1764969059771,-500.0,0.00016986,2]
[396438752,1764969059780,-500.0,0.00016986,2]
[396438753,1764969059789,-500.0,0.00016986,2]
[396438754,1764969059799,-500.0,0.00016986,2]
[396438755,1764969059809,-500.0,0.00016986,2]
[396438756,1764969059819,-512.86,0.00016986,2]
[396438757,1764969059828,-500.0,0.00016986,2]
[396438758,1764969059838,-500.0,0.00016986,2]
[396438759,1764969059847,-500.0,0.00016986,2]
[396438760,1764969059857,-500.0,0.00016986,2]
[396438761,1764969059866,-1285.66,0.00016986,2]
[396438762,1764969059875,-608.49,0.00016986,2]
[396438763,1764969059885,-500.0,0.00016986,2]
[396438764,1764969059894,-500.0,0.00016986,2]
[396438765,1764969059904,-393.31257749,0.00016986,2]
[396438766,1764969059914,-500.0,0.00016986,2]
[396438767,1764969059924,-500.0,0.00016986,2]
[396438768,1764969059934,-868.62,0.00016986,2]
[396438769,1764969059944,-500.0,0.00016986,2]
[396438770,1764969059953,-500.0,0.00016986,2]
[396438771,1764969059963,-500.0,0.00016986,2]
[396438772,1764969059972,-506.58,0.00016986,2]
[396438773,1764969059981,-500.0,0.00016986,2]
[396438774,1764969059991,-500.0,0.00016986,2]
[396438775,1764969060000,-778.18,0.00016986,2]
[396438776,1764969060009,-500.0,0.00016986,2]
[396438777,1764969060018,-500.0,0.00016986,2]
[396438778,1764969060028,-530.29,0.00016986,2]
[396438779,1764969060038,-1136.23,0.00016986,2]
[396438780,1764969060047,-500.0,0.00016986,2]
[396438781,1764969060057,-553.7,0.00016986,2]
[396438782,1764969060066,-500.0,0.00016986,2]
[396438783,1764969060075,-500.0,0.00016986,2]
[396438784,1764969060085,-901.32,0.00016986,2]
[396438785,1764969060094,-500.0,0.00016986,2]
[396438786,1764969060103,-500.0,0.00016986,2]
[396438787,1764969060112,-500.0,0.00016986,2]
[396438788,1764969060122,-659.27,0.00016986,2]
[396438789,1764969060132,-500.0,0.00016986,2]
[396438790,1764969060141,-500.0,0.00016986,2]
[396438791,1764969060151,-500.0,0.00016986,2]
[396438792,1764969060160,-500.0,0.00016986,2]
[396438793,1764969060171,-500.0,0.00016986,2]
[396438794,1764969060180,-500.0,0.00016986,2]
[396438795,1764969060190,-500.0,0.00016986,2]
[396438796,1764969060200,-500.0,0.00016986,2]
[396438797,1764969060210,-500.0,0.00016986,2]
[396438798,1764969060220,-590.59,0.00016986,2]
[396438799,1764969060229,-500.0,0.00016986,2]
[396438800,1764969060239,-561.71,0.00016986,2]
[396438801,1764969060248,-500.0,0.00016986,2]
[396438802,1764969060258,-500.0,0.00016986,2]
[396438803,1764969060268,-326.43741866,0.00016986,2]
[396438804,1764969060279,-500.0,0.00016986,2]
[396438805,1764969060288,-709.98,0.00016986,2]
[396438806,1764969060298,-500.0,0.00016986,2]
[396438807,1764969060308,-500.0,0.00016986,2]
[396438808,1764969060317,-500.0,0.00016986,2]
[396438809,1764969060327,-340.29,0.00016986,2]
[396438810,1764969060336,-500.0,0.00016986,2]
[396438811,1764969060345,-500.0,0.00016986,2]
[396438812,1764969060354,-500.0,0.00016986,2]
[396438813,1764969060364,-500.0,0.00016986,2]
[396438814,1764969060373,-500.0,0.00016986,2]
[396438815,1764969060383,-500.0,0.00016986,2]
[396438816,1764969060393,-500.0,0.00016986,2]
[396438817,1764969060402,-500.0,0.00016986,2]
[396438818,1764969060411,-1870.97,0.00016986,2]
[396438819,1764969060421,-547.05,0.00016986,2]
[396438820,1764969060430,-578.06,0.00016986,2]
[396438821,1764969060439,-500.0,0.00016986,2]
[396438822,1764969060448,-514.66,0.00016986,2]
[396438823,1764969060458,-632.04,0.00016986,2]
[396438824,1764969060468,-500.0,0.00016986,2]
[396438825,1764969060477,-500.0,0.00016986,2]
[396438826,1764969060486,-500.0,0.00016986,2]
[396438827,1764969060495,-776.87,0.00016986,2]
[396438828,1764969060504,-634.72810787,0.00016986,2]
[396438829,1764969060514,-3125.0,0.00016986,2]